bitfinex-derivatives/quotes_ETHF0:USTF0_20240817
["timestamp","ask_amount","ask_price","bid_price","bid_amount"]
[1723879442024,0.00024156,2595.8,2595.7,0.60736887]
[1723879443126,1.92597156,2595.8,2595.7,0.60736887]
[1723879443824,1.92597156,2595.8,2595.7,0.60737293]
[1723879444422,1.92597156,2595.8,2595.6,1.00815274]
[1723879444629,1.92597156,2595.8,2595.7,0.60737305]
[1723879445424,2.0109792,2595.8,2595.7,1.61552579]
[1723879445822,0.00024156,2595.8,2595.7,1.61552579]
[1723879446525,0.00024156,2595.8,2595.7,1.98172579]
[1723879447025,0.00024156,2595.8,2595.7,11.67690128]
[1723879447228,0.00024156,2595.8,2595.7,10.16441455]
[1723879447827,0.00024156,2595.8,2595.7,11.57729]
[1723879448033,0.00024156,2595.8,2595.7,12.18462889]
[1723879450617,0.00024156,2595.8,2595.7,10.16438039]
[1723879452027,0.00024156,2595.8,2595.7,9.5570415]
[1723879452230,0.00024156,2595.8,2595.7,10.16437977]
[1723879453332,0.00024156,2595.8,2595.7,10.16428942]
[1723879453731,0.00024156,2595.8,2595.7,9.05428942]
[1723879453934,0.00024156,2595.8,2595.7,10.16428942]
[1723879454828,0.00024156,2595.8,2595.7,5.90026433]
[1723879455029,0.00024156,2595.8,2595.7,8.26686433]
[1723879455225,0.00024156,2595.8,2595.7,4.41406433]
[1723879455428,0.34884156,2595.8,2595.7,4.41406433]
[1723879456037,0.34884156,2595.8,2595.7,8.26686433]
[1723879456232,0.34884156,2595.8,2595.7,7.65952606]
[1723879456437,0.34884156,2595.8,2595.7,8.2668808]
[1723879456845,0.34884156,2595.8,2595.7,8.26688176]
[1723879458132,2.27457156,2595.8,2595.7,8.26688176]
[1723879458331,0.34884156,2595.8,2595.7,4.41408176]
[1723879458541,0.34884156,2595.8,2595.7,8.26688176]
[1723879458542,2.27457156,2595.8,2595.7,8.26688176]
[1723879458735,2.27457156,2595.8,2595.7,4.41408176]
[1723879458938,2.27457156,2595.8,2595.7,8.26688176]
[1723879459133,2.27457156,2595.8,2595.7,4.41408176]
[1723879459327,2.27457156,2595.8,2595.7,8.26688176]
[1723879460543,2.27457156,2595.8,2595.7,8.26688388]
[1723879460839,0.34884156,2595.8,2595.7,8.26688388]
[1723879461236,2.27457156,2595.8,2595.7,8.26688388]
[1723879461540,2.27457156,2595.8,2595.7,4.04788388]
[1723879461836,2.27457156,2595.8,2595.7,2.53330897]
[1723879462430,2.27457156,2595.8,2595.7,4.04788388]
[1723879462632,0.34884156,2595.8,2595.7,4.04788388]
[1723879463933,2.27457156,2595.8,2595.7,4.04788388]
[1723879464135,0.34884156,2595.8,2595.7,4.04788388]
[1723879464439,0.34884156,2595.8,2595.7,3.44052606]
[1723879464735,0.34884156,2595.8,2595.7,4.04786487]
[1723879466735,0.34884156,2595.8,2595.7,4.04787048]
[1723879467737,2.27457156,2595.8,2595.7,4.04787048]
[1723879468238,0.34884156,2595.8,2595.7,4.04787048]
[1723879468435,0.34884156,2595.8,2595.7,4.04808955]
[1723879468743,0.34884156,2595.8,2595.7,2.53329557]
[1723879469341,0.34884156,2595.8,2595.7,2.5332914]
[1723879471445,0.34884156,2595.8,2595.7,2.53329439]
[1723879472143,0.34884156,2595.8,2595.7,4.45909439]
[1723879472741,0.34884156,2595.8,2595.7,6.47934289]
[1723879473449,0.34884156,2595.8,2595.7,9.68714289]
[1723879473640,0.34884156,2595.8,2595.7,5.74109439]
[1723879476052,0.34884156,2595.8,2595.7,2.53329439]
[1723879476244,0.34884156,2595.8,2595.7,5.74109439]
[1723879476846,0.34884156,2595.8,2595.7,7.66689439]
[1723879478848,0.34884156,2595.8,2595.7,4.45909439]
[1723879479155,0.34884156,2595.8,2595.7,7.66689439]
[1723879479448,0.34884156,2595.8,2595.7,5.74093464]
[1723879479661,0.34884156,2595.8,2595.7,7.66686557]
[1723879479847,0.34884156,2595.8,2595.7,9.1816918]
[1723879480247,0.34884156,2595.8,2595.7,5.9738918]
[1723879480758,0.34884156,2595.8,2595.7,4.4590692]
[1723879481056,0.34884156,2595.8,2595.7,3.85173456]
[1723879481253,0.34884156,2595.8,2595.7,5.36660135]
[1723879481456,0.34884156,2595.8,2595.7,5.97393741]
[1723879482359,0.00024156,2595.8,2595.7,15.82237476]
[1723879484456,0.34974156,2595.8,2595.7,15.82237476]
[1723879485050,0.34974156,2595.8,2595.7,15.82232337]
[1723879485456,0.00024156,2595.8,2595.7,15.82232337]
[1723879485755,0.00024156,2595.8,2595.7,15.82230939]
[1723879486859,0.00024156,2595.8,2595.7,19.67405901]
[1723879487750,0.00024156,2595.8,2595.7,19.67405444]
[1723879488151,0.00024156,2595.8,2595.7,15.82230939]
[1723879488456,0.00024156,2595.8,2595.7,19.67410027]
[1723879488657,0.00024156,2595.8,2595.7,19.67406192]
[1723879489656,0.00024156,2595.8,2595.7,19.06665786]
[1723879489852,0.00024156,2595.8,2595.7,19.67397367]
[1723879490656,0.00024156,2595.8,2595.7,17.65372517]
[1723879491856,0.00578369,2596.0,2595.8,1.92569]
[1723879492054,0.00578369,2596.0,2595.9,6.85096705]
[1723879492249,0.00578369,2596.0,2595.9,9.24493219]
[1723879492959,0.00971689,2596.0,2595.9,9.24493219]
[1723879493356,0.00971689,2596.0,2595.9,7.22416705]
[1723879494251,0.00971689,2596.0,2595.9,7.22413802]
[1723879494451,0.00971689,2596.0,2595.9,7.22413552]
[1723879494661,0.00971689,2596.0,2595.9,8.3664875]
[1723879494858,0.00971689,2596.0,2595.9,5.1586875]
[1723879495061,0.00971689,2596.0,2595.9,4.04869847]
[1723879496255,0.00971689,2596.0,2595.9,4.0487004]
[1723879500666,11.89729689,2596.0,2595.9,0.60732621]
[1723879500870,16.33609838,2596.0,2595.9,0.60732621]
[1723879501369,1.92573,2595.8,2595.7,1.01043594]
[1723879501670,3.93954492,2595.8,2595.7,1.01043594]
[1723879501872,5.77853,2595.8,2595.7,1.01043594]
[1723879502059,8.15694492,2595.8,2595.7,1.01043594]
[1723879504267,6.14313,2595.8,2595.7,1.01043594]
[1723879516280,2.02353181,2596.0,2595.7,5.97323594]
[1723879516481,4.31834181,2596.0,2595.7,2.12043594]
[1723879516779,2.39273181,2596.0,2595.8,1.9257]
[1723879516972,0.37891689,2596.0,2595.8,2.93613594]
[1723879517169,0.37891689,2596.0,2595.9,0.3463]
[1723879519170,0.37891689,2596.0,2595.8,1.01043594]
[1723879519476,2.39273181,2596.0,2595.8,1.01043594]
[1723879519985,2.30450689,2596.0,2595.8,1.01043594]
[1723879520275,4.31832181,2596.0,2595.8,1.01043594]
[1723879520473,2.39273181,2596.0,2595.8,1.01043594]
[1723879520774,2.39273181,2596.0,2595.8,1.36683594]
[1723879520982,0.37891689,2596.0,2595.8,1.36683594]
[1723879521374,0.00971689,2596.0,2595.8,3.29255594]
[1723879521776,0.00971689,2596.0,2595.8,1.36683594]
[1723879522167,0.00971689,2596.0,2595.8,3.29256594]
[1723879523673,0.00971689,2596.0,2595.8,1.36683594]
[1723879526075,1.93529689,2596.0,2595.8,1.36683594]
[1723879526976,3.94911181,2596.0,2595.8,1.36683594]
[1723879527377,0.00971689,2596.0,2595.8,1.36683594]
[1723879528176,0.00971689,2596.0,2595.8,3.29255594]
[1723879528374,0.00971689,2596.0,2595.9,0.3466]
[1723879530782,0.00971689,2596.0,2595.9,5.3086]
[1723879530984,0.00971689,2596.0,2595.9,6.31903594]
[1723879531185,0.00971689,2596.0,2595.9,7.23451142]
[1723879532076,0.00971689,2596.0,2595.9,8.24418081]
[1723879532277,0.00971689,2596.0,2595.9,8.24419938]
[1723879532573,0.00971689,2596.0,2595.9,4.39219938]
[1723879532780,0.00971689,2596.0,2595.9,8.24419938]
[1723879532980,0.00971689,2596.0,2595.9,7.23451142]
[1723879533182,0.00971689,2596.0,2595.9,9.16016142]
[1723879533375,0.00971689,2596.0,2595.9,8.7500634]
[1723879533585,0.00971689,2596.0,2595.9,7.23451142]
[1723879533983,0.00971689,2596.0,2595.9,8.24420031]
[1723879534183,0.36761689,2596.0,2595.9,4.39217855]
[1723879534380,0.36761689,2596.0,2595.9,4.04557855]
[1723879534575,0.36761689,2596.0,2595.9,3.03588966]
[1723879534778,0.36761689,2596.0,2595.9,4.04554534]
[1723879534986,0.36761689,2596.0,2595.9,4.0455441]
[1723879535580,0.36761689,2596.0,2595.9,4.04554429]
[1723879536075,0.72851689,2596.0,2595.9,1.00965463]
[1723879536685,0.72851689,2596.0,2595.9,2.93556811]
[1723879537189,0.00971689,2596.0,2595.9,1.92591348]
[1723879537385,0.00971689,2596.0,2595.9,3.44146546]
[1723879537690,0.00971689,2596.0,2595.9,4.55146546]
[1723879538784,0.00971689,2596.0,2595.9,6.47711546]
[1723879538980,4.8506,2596.3,2596.2,1.92543]
[1723879538981,4.113,2596.3,2596.2,1.92543]
[1723879539180,1.92522,2596.5,2596.2,9.21741898]
[1723879539382,1.92522,2596.5,2596.3,2.11940163]
[1723879539594,1.92522,2596.5,2596.3,2.48070163]
[1723879540088,1.92930619,2596.5,2596.3,2.48070163]
[1723879541983,0.00408619,2596.5,2596.3,2.48070163]
[1723879542589,0.00408619,2596.5,2596.3,1.4713]
[1723879542990,0.00408619,2596.5,2596.3,2.48070163]
[1723879544189,0.00408619,2596.5,2596.3,1.4713]
[1723879544693,3.03929619,2596.5,2596.3,1.4713]
[1723879545182,1.92539,2596.3,2596.1,1.01518532]
[1723879545382,0.7251,2596.2,2596.1,0.00578369]
[1723879545682,1.0739,2596.2,2596.1,0.00578369]
[1723879546289,2.99933,2596.2,2596.1,0.00578369]
[1723879547281,2.99933,2596.2,2596.1,2.47418532]
[1723879547486,2.99933,2596.2,2596.1,1.46478369]
[1723879547785,1.0739,2596.2,2596.1,2.47418532]
[1723879548589,1.0739,2596.2,2596.1,1.46478369]
[1723879548989,1.0739,2596.2,2596.1,2.47418532]
[1723879549189,2.99933,2596.2,2596.1,2.47418532]
[1723879549498,2.99933,2596.2,2596.1,1.46478369]
[1723879550800,1.0739,2596.2,2596.1,2.47418532]
[1723879551695,1.0739,2596.2,2596.1,1.46478369]
[1723879551896,1.92531,2596.4,2596.2,1.92542]
[1723879552094,3.00021,2596.4,2596.2,2.93482163]
[1723879552992,0.00408619,2596.5,2596.3,1.92533]
[1723879553187,0.00408619,2596.5,2596.4,0.3553]
[1723879553389,1.92929619,2596.5,2596.4,0.3553]
[1723879553991,0.00408619,2596.5,2596.4,0.3553]
[1723879563507,0.00408619,2596.5,2596.4,2.28058]
[1723879563712,0.00408619,2596.5,2596.4,3.39058]
[1723879565212,0.00408619,2596.5,2596.4,10.44958]
[1723879565410,0.00408619,2596.5,2596.4,14.82369037]
[1723879567213,0.00408619,2596.5,2596.4,10.97249037]
[1723879567403,0.00578369,2596.7,2596.6,1.92513]
[1723879567603,0.00578369,2596.7,2596.6,4.04286675]
[1723879568007,0.00578369,2596.7,2596.6,4.41896675]
[1723879568206,0.00578369,2596.7,2596.6,6.34419337]
[1723879568511,0.01019003,2596.7,2596.6,4.41896675]
[1723879568906,0.01019003,2596.7,2596.6,12.44770682]
[1723879570609,0.01019003,2596.7,2596.6,11.43997007]
[1723879570809,1.93525003,2596.7,2596.6,8.02874007]
[1723879571109,1.93525003,2596.7,2596.6,4.17754007]
[1723879571712,0.01019003,2596.7,2596.6,12.07160682]
[1723879571904,0.01019003,2596.7,2596.6,11.06387007]
[1723879572104,1.93525003,2596.7,2596.6,1.11]
[1723879572815,1.92513,2596.6,2596.5,2.11773675]
[1723879573109,3.02323,2596.6,2596.5,5.30476429]
[1723879573317,3.02323,2596.6,2596.5,9.15596429]
[1723879575010,1.0981,2596.6,2596.5,9.15596429]
[1723879575604,3.02323,2596.6,2596.5,9.15596429]
[1723879576522,1.0981,2596.6,2596.5,9.15596429]
[1723879578111,1.92521,2596.5,2596.3,5.72695496]
[1723879578309,1.92521,2596.5,2596.3,5.32553675]
[1723879578518,1.92521,2596.5,2596.4,4.43889656]
[1723879579120,1.0981,2596.6,2596.5,1.92521]
[1723879579422,1.0981,2596.6,2596.4,4.21553675]
[1723879579616,1.92521,2596.5,2596.4,3.2078]
[1723879579919,1.92521,2596.5,2596.4,1.00773675]
[1723879580121,1.92521,2596.5,2596.3,4.04306675]
[1723879580519,1.92521,2596.5,2596.4,4.18243295]
[1723879581313,3.02328,2596.6,2596.4,5.1901697]
[1723879582022,1.92521,2596.5,2596.4,5.1901697]
[1723879582222,1.92521,2596.5,2596.4,6.3001697]
[1723879583115,3.02328,2596.6,2596.4,6.3001697]
[1723879583520,1.92521,2596.5,2596.4,6.3001697]
[1723879584622,0.01019003,2596.7,2596.6,1.92513]
[1723879584814,0.01019003,2596.7,2596.6,6.24293]
[1723879585920,0.01019003,2596.7,2596.6,7.25190882]
[1723879586919,0.01019003,2596.7,2596.6,4.04410882]
[1723879587927,0.01019003,2596.7,2596.6,14.68756002]
[1723879588618,0.01019003,2596.7,2596.6,13.17614181]
[1723879589523,0.01019003,2596.7,2596.6,13.17607847]
[1723879589821,0.01019003,2596.7,2596.6,14.68912035]
[1723879590613,0.01019003,2596.7,2596.6,13.17607847]
[1723879590923,1.93525003,2596.7,2596.6,6.28974847]
[1723879591223,1.93525003,2596.7,2596.6,6.48331802]
[1723879592623,1.93525003,2596.7,2596.6,5.37331802]
[1723879593222,1.93525003,2596.7,2596.6,4.36460775]
[1723879593818,1.93525003,2596.7,2596.6,5.37331802]
[1723879595728,1.93525003,2596.7,2596.6,5.71921802]
[1723879596126,0.01019003,2596.7,2596.6,7.64434802]
[1723879596433,0.01019003,2596.7,2596.6,9.57000113]
[1723879596829,0.01019003,2596.7,2596.6,8.56098665]
[1723879597329,0.01019003,2596.7,2596.6,10.07392253]
[1723879597519,0.01019003,2596.7,2596.6,9.57010324]
[1723879597723,0.01019003,2596.7,2596.6,10.07392253]
[1723879599028,0.01019003,2596.7,2596.6,13.9249712]
[1723879599233,0.01019003,2596.7,2596.6,12.41203532]
[1723879599925,0.01019003,2596.7,2596.6,12.41202714]
[1723879600126,0.01019003,2596.7,2596.6,13.92567882]
[1723879603129,0.01019003,2596.7,2596.6,12.41202714]
[1723879604231,0.01019003,2596.7,2596.6,13.92587195]
[1723879604426,0.01019003,2596.7,2596.6,12.41202714]
[1723879606130,0.01019003,2596.7,2596.6,13.92593776]
[1723879606435,0.01019003,2596.7,2596.6,12.41202714]
[1723879608233,0.01019003,2596.7,2596.6,12.41206786]
[1723879608637,0.01019003,2596.7,2596.6,15.61986786]
[1723879611432,0.01019003,2596.7,2596.6,11.76866786]
[1723879611627,0.01019003,2596.7,2596.6,13.789433]
[1723879612444,0.01019003,2596.7,2596.6,17.640633]
[1723879612747,0.01019003,2596.7,2596.6,21.49086237]
[1723879613144,0.01019003,2596.7,2596.6,19.47009723]
[1723879617443,0.01019003,2596.7,2596.6,19.469844]
[1723879618541,0.01019003,2596.7,2596.6,21.48765215]
[1723879619048,0.01019003,2596.7,2596.6,21.48768679]
[1723879619444,0.01019003,2596.7,2596.6,19.469844]
[1723879620647,0.01019003,2596.7,2596.6,21.48762929]
[1723879621549,0.01019003,2596.7,2596.6,19.469844]
[1723879622148,0.01019003,2596.7,2596.6,16.262044]
[1723879622345,0.01019003,2596.7,2596.6,19.469844]
[1723879622552,0.01019003,2596.7,2596.6,15.618644]
[1723879622752,0.01019003,2596.7,2596.6,17.63630342]
[1723879624649,0.01019003,2596.7,2596.6,12.93604918]
[1723879624840,0.01019003,2596.7,2596.6,11.01091918]
[1723879625047,0.37249003,2596.7,2596.6,12.93604918]
[1723879625246,0.37249003,2596.7,2596.6,12.93626672]
[1723879626853,0.37249003,2596.7,2596.6,13.79758346]
[1723879628150,0.7382,2597.0,2596.6,13.79758346]
[1723879628151,0.7382,2597.0,2596.9,1.92491]
[1723879628346,1.1001,2597.0,2596.9,8.5715947]
[1723879628656,1.1001,2597.0,2596.9,7.05799629]
[1723879628952,1.1001,2597.0,2596.9,3.85019629]
[1723879629157,1.10346323,2597.0,2596.9,1.92982941]
[1723879629348,1.10346323,2597.0,2596.9,2.93897262]
[1723879629858,1.10346323,2597.0,2596.9,2.93898722]
[1723879630359,1.10346323,2597.0,2596.9,1.92984401]
[1723879630654,1.10346323,2597.0,2596.9,3.44344242]
[1723879630854,1.10346323,2597.0,2596.9,1.92984401]
[1723879631055,1.10346323,2597.0,2596.9,5.36835242]
[1723879631257,1.10346323,2597.0,2596.9,3.44344242]
[1723879632254,1.10346323,2597.0,2596.9,5.36835242]
[1723879632450,1.10346323,2597.0,2596.9,3.44344242]
[1723879633052,1.10346323,2597.0,2596.9,3.44323507]
[1723879633252,1.10346323,2597.0,2596.9,8.57610722]
[1723879634153,1.10346323,2597.0,2596.9,6.65103507]
[1723879634358,1.10346323,2597.0,2596.9,8.57605948]
[1723879635556,1.10346323,2597.0,2596.9,8.92545948]
[1723879635753,1.10346323,2597.0,2596.9,7.41186107]
[1723879636357,1.10346323,2597.0,2596.9,8.92577647]
[1723879637362,1.10346323,2597.0,2596.9,8.92566728]
[1723879637952,1.10346323,2597.0,2596.9,5.71786728]
[1723879638561,1.10346323,2597.0,2596.9,8.92566728]
[1723879638861,1.10346323,2597.0,2596.9,8.92571676]
[1723879639758,1.10346323,2597.0,2596.9,5.71791676]
[1723879640556,1.10346323,2597.0,2596.9,3.44360676]
[1723879640758,1.10346323,2597.0,2596.9,6.47851676]
[1723879642466,1.10346323,2597.0,2596.9,4.96471055]
[1723879642777,1.10346323,2597.0,2596.9,6.47877088]
[1723879643163,1.10346323,2597.0,2596.9,4.96471055]
[1723879644563,1.10346323,2597.0,2596.9,6.47882816]
[1723879645968,1.10346323,2597.0,2596.9,4.55391816]
[1723879646164,3.02830323,2597.0,2596.9,4.55391816]
[1723879646359,3.02830323,2597.0,2596.9,2.93931573]
[1723879646559,9.91354323,2597.0,2596.9,1.01424184]
[1723879646764,1.92491,2596.9,2596.6,2.11951518]
[1723879646959,2.01587648,2596.8,2596.6,2.11951518]
[1723879647154,5.86707648,2596.8,2596.6,2.11951518]
[1723879647365,4.2007,2596.7,2596.6,2.11951518]
[1723879647561,6.12576,2596.7,2596.6,4.04493077]
[1723879647763,6.12576,2596.7,2596.6,4.04882194]
[1723879648858,6.12576,2596.7,2596.6,4.55342437]
[1723879649463,6.12576,2596.7,2596.6,3.03930676]
[1723879650367,6.12576,2596.7,2596.6,4.04863128]
[1723879650561,0.3495,2596.7,2596.6,4.04863128]
[1723879650761,0.3495,2596.7,2596.6,3.39850676]
[1723879650963,0.3495,2596.7,2596.6,4.91242983]
[1723879651162,2.27456,2596.7,2596.6,4.91242983]
[1723879651669,0.3495,2596.7,2596.6,6.83755983]
[1723879651969,0.3495,2596.7,2596.6,5.32363676]
[1723879652169,0.3495,2596.7,2596.6,5.32347865]
[1723879652672,0.3495,2596.7,2596.6,6.83738279]
[1723879652975,0.3495,2596.7,2596.6,6.47818279]
[1723879653276,2.27456,2596.7,2596.6,4.0484739]
[1723879653567,2.27456,2596.7,2596.6,2.12320064]
[1723879653769,6.12576,2596.7,2596.6,1.11387539]
[1723879654567,6.12576,2596.7,2596.6,2.12320064]
[1723879655373,6.12576,2596.7,2596.6,1.11387539]
[1723879655985,6.12576,2596.7,2596.6,2.12320064]
[1723879656170,4.2007,2596.7,2596.6,2.12320064]
[1723879656364,4.2007,2596.7,2596.6,2.49820064]
[1723879656563,4.2007,2596.7,2596.6,3.41425688]
[1723879656769,0.3495,2596.7,2596.6,3.41420036]
[1723879656962,4.2007,2596.7,2596.6,4.42319487]
[1723879657168,4.2007,2596.7,2596.6,4.42320555]
[1723879657474,6.12576,2596.7,2596.6,4.42316697]
[1723879657777,6.12576,2596.7,2596.6,3.41420036]
[1723879657971,6.12576,2596.7,2596.6,4.42315811]
[1723879658473,6.12576,2596.7,2596.6,2.12283314]
[1723879659774,6.12576,2596.7,2596.6,1.11387539]
[1723879659975,6.12576,2596.7,2596.6,2.12283314]
[1723879660871,6.12576,2596.7,2596.6,1.11387539]
[1723879664573,2.27456,2596.7,2596.6,1.11387539]
[1723879667486,0.3495,2596.7,2596.6,1.11387539]
[1723879667976,0.3495,2596.7,2596.6,1.47467539]
[1723879668172,2.27456,2596.7,2596.6,1.47467539]
[1723879668482,2.27456,2596.7,2596.6,1.11387539]
[1723879672073,2.27456,2596.7,2596.6,1.47717539]
[1723879672074,0.3495,2596.7,2596.6,1.47717539]
[1723879674287,0.3495,2596.7,2596.6,2.48613314]
[1723879674788,0.3495,2596.7,2596.6,4.41126314]
[1723879674979,0.3495,2596.7,2596.6,2.48613314]
[1723879676280,2.27456,2596.7,2596.6,2.48613314]
[1723879676485,2.27456,2596.7,2596.6,1.47717539]
[1723879676785,0.3495,2596.7,2596.6,1.47717539]
[1723879677680,0.3495,2596.7,2596.6,2.48613314]
[1723879686295,0.3495,2596.7,2596.6,4.4114561]
[1723879687489,0.3495,2596.7,2596.6,4.91637672]
[1723879687897,0.3495,2596.7,2596.6,3.40247258]
[1723879688194,2.27456,2596.7,2596.6,4.41172867]
[1723879688499,2.27456,2596.7,2596.6,3.40247258]
[1723879689293,2.27456,2596.7,2596.6,4.91637672]
[1723879690796,1.92504,2596.8,2596.6,4.91637672]
[1723879691004,1.92504,2596.8,2596.7,1.00972963]
[1723879691493,1.92504,2596.8,2596.7,2.93505628]
[1723879691699,1.92504,2596.8,2596.7,1.92532665]
[1723879691896,1.92504,2596.8,2596.7,1.92530493]
[1723879692091,3.94091648,2596.8,2596.7,1.00998304]
[1723879692291,3.94091648,2596.8,2596.7,2.93534222]
[1723879693112,3.94091648,2596.8,2596.7,1.00998304]
[1723879693306,3.94091648,2596.8,2596.7,2.93534597]
[1723879694208,3.94091648,2596.8,2596.7,1.00998304]
[1723879694911,3.85009,2596.8,2596.7,1.00998304]
[1723879695113,1.92506,2596.7,2596.6,1.01385843]
[1723879695298,3.94260388,2596.7,2596.6,2.12385843]
[1723879695911,1.92506,2596.7,2596.6,2.12385843]
[1723879696106,3.94256649,2596.7,2596.6,2.12385843]
[1723879696705,1.92506,2596.7,2596.6,4.55329532]
[1723879697407,3.94256649,2596.7,2596.6,4.55329532]
[1723879699705,3.94256649,2596.7,2596.6,3.03939118]
[1723879699905,3.94256649,2596.7,2596.6,4.55329532]
[1723879700309,3.94256649,2596.7,2596.6,4.04967835]
[1723879701010,3.94256649,2596.7,2596.6,4.55320966]
[1723879701401,3.94256649,2596.7,2596.6,4.04957537]
[1723879701908,3.94256649,2596.7,2596.6,4.55320966]
[1723879702114,4.31336649,2596.7,2596.6,4.55320966]
[1723879702314,4.31336649,2596.7,2596.6,3.03930552]
[1723879702613,2.29586,2596.7,2596.6,4.55320966]
[1723879702808,2.29586,2596.7,2596.6,4.92680966]
[1723879703311,2.29586,2596.7,2596.6,3.41290552]
[1723879704004,3.94254649,2596.8,2596.6,3.41290552]
[1723879704210,4.31264649,2596.8,2596.7,4.55074202]
[1723879705113,2.29514,2596.8,2596.7,4.55074202]
[1723879705516,4.31264649,2596.8,2596.7,4.55074202]
[1723879705817,4.31264649,2596.8,2596.7,4.55057606]
[1723879707617,2.29514,2596.8,2596.7,4.55057606]
[1723879708919,4.31264649,2596.8,2596.7,4.55057606]
[1723879710117,4.31264649,2596.8,2596.7,2.62531189]
[1723879710415,2.29514,2596.8,2596.7,4.55059532]
[1723879710613,4.31264649,2596.8,2596.7,4.55059532]
[1723879711012,4.31264649,2596.8,2596.7,3.03528343]
[1723879711414,4.31264649,2596.8,2596.7,4.55059532]
[1723879711911,4.31264649,2596.8,2596.7,4.04544401]
[1723879712117,4.31264649,2596.8,2596.7,4.55059532]
[1723879712617,2.29514,2596.8,2596.7,4.55059532]
[1723879712814,4.31264649,2596.8,2596.7,4.55059532]
[1723879713019,2.29514,2596.8,2596.7,4.55059532]
[1723879713213,4.31264649,2596.8,2596.7,4.55059532]
[1723879714924,4.31264649,2596.8,2596.7,4.55059117]
[1723879716710,2.29514,2596.8,2596.7,4.55059117]
[1723879717417,4.31264649,2596.8,2596.7,4.55059117]
[1723879718913,2.29514,2596.8,2596.7,4.55059117]
[1723879719117,4.31264649,2596.8,2596.7,4.55059117]
[1723879719618,4.31264649,2596.8,2596.7,4.55058431]
[1723879720325,4.31264649,2596.8,2596.7,4.55061988]
[1723879723122,2.29514,2596.8,2596.7,4.55061988]
[1723879724626,4.31264649,2596.8,2596.7,4.55061988]
[1723879726128,2.29514,2596.8,2596.7,4.55061988]
[1723879726517,0.3701,2596.8,2596.7,4.55061988]
[1723879726722,2.29508,2596.8,2596.7,4.55061988]
[1723879727519,4.31258649,2596.8,2596.7,4.55061988]
[1723879728228,2.29508,2596.8,2596.7,4.55061988]
[1723879728726,2.29508,2596.8,2596.7,5.83311189]
[1723879728727,0.3701,2596.8,2596.7,5.83311189]
[1723879728928,0.3701,2596.8,2596.7,7.75835049]
[1723879729119,2.29509,2596.8,2596.7,7.75835049]
[1723879729928,2.29509,2596.8,2596.7,4.55055049]
[1723879730123,2.29509,2596.8,2596.7,7.75835049]
[1723879731125,4.31259649,2596.8,2596.7,7.75835049]
[1723879731632,4.31259649,2596.8,2596.7,4.55055049]
[1723879732132,2.29509,2596.8,2596.7,4.55055049]
[1723879733425,2.29509,2596.8,2596.7,4.55059233]
[1723879733826,4.31259649,2596.8,2596.7,4.55059233]
[1723879735128,2.29509,2596.8,2596.7,4.55059233]
[1723879735632,4.31259649,2596.8,2596.7,4.55059233]
[1723879736028,0.3504,2596.9,2596.8,1.92498]
[1723879736029,2.01750649,2596.9,2596.8,1.92498]
[1723879736227,0.00336323,2597.0,2596.9,1.92491]
[1723879736431,0.00336323,2597.0,2596.9,18.62200398]
[1723879736626,0.00578369,2597.2,2597.0,1.92477]
[1723879736833,0.00578369,2597.2,2597.1,6.47463363]
[1723879737031,0.00578369,2597.2,2597.1,3.03528044]
[1723879737232,0.00578369,2597.2,2597.1,14.73486299]
[1723879737440,2.01750649,2597.6,2597.1,18.31565245]
[1723879737741,0.0046241,2597.6,2597.5,2.6237986]
[1723879737937,0.0046241,2597.6,2597.5,8.398033]
[1723879738140,0.0046241,2597.6,2597.5,12.32524825]
[1723879738438,0.0046241,2597.6,2597.5,12.69004825]
[1723879739331,0.0046241,2597.6,2597.5,10.76541385]
[1723879740231,1.9290141,2597.6,2597.5,9.75711762]
[1723879740441,1.9290141,2597.6,2597.5,5.90751762]
[1723879740942,0.0046241,2597.6,2597.5,9.75711762]
[1723879743744,1.9290141,2597.6,2597.5,4.43271762]
[1723879743942,1.92447,2597.5,2597.4,1.11]
[1723879744133,2.64347,2597.5,2597.4,1.11]
[1723879746945,2.64347,2597.5,2597.4,2.11829623]
[1723879747443,2.64347,2597.5,2597.4,1.11]
[1723879748940,0.719,2597.5,2597.4,1.11]
[1723879751550,0.0046241,2597.6,2597.5,1.92447]
[1723879751843,0.0046241,2597.6,2597.5,3.03447]
[1723879752050,0.0046241,2597.6,2597.5,7.16219399]
[1723879756854,0.0046241,2597.6,2597.5,10.36999399]
[1723879760547,0.00382957,2597.8,2597.7,1.92432]
[1723879760749,0.00382957,2597.8,2597.7,3.03432]
[1723879761052,0.00382957,2597.8,2597.7,11.26987119]
[1723879761544,0.00872342,2597.8,2597.7,11.97357119]
[1723879765256,0.00872342,2597.8,2597.7,8.93925119]
[1723879765451,1.93296342,2597.8,2597.5,5.13800369]
[1723879765759,0.3617,2597.7,2597.6,4.33623579]
[1723879765953,0.3617,2597.7,2597.6,6.26062579]
[1723879766261,0.3617,2597.7,2597.6,4.33623579]
[1723879766651,0.3617,2597.7,2597.6,6.26062579]
[1723879767353,0.3617,2597.7,2597.6,9.46842579]
[1723879767956,0.3617,2597.7,2597.6,6.26062579]
[1723879768260,0.3617,2597.7,2597.6,9.46842579]
[1723879770259,0.3617,2597.7,2597.6,10.57842579]
[1723879771552,0.3617,2597.7,2597.6,8.65403579]
[1723879772057,0.3617,2597.7,2597.6,4.3178]
[1723879772962,0.3617,2597.7,2597.6,6.24219]
[1723879776060,0.3617,2597.7,2597.6,3.03439]
[1723879776363,0.3617,2597.7,2597.6,6.24219]
[1723879780158,0.3617,2597.7,2597.6,7.25048623]
[1723879780756,2.28602,2597.7,2597.6,4.21609623]
[1723879781068,2.28602,2597.7,2597.6,4.3178]
[1723879781263,0.3617,2597.7,2597.6,5.32609623]
[1723879781465,2.28602,2597.7,2597.6,5.32609623]
[1723879781965,0.3617,2597.7,2597.6,7.25048623]
[1723879782167,0.3617,2597.7,2597.6,8.16678068]
[1723879783469,0.3617,2597.7,2597.6,4.95898068]
[1723879783866,0.3617,2597.7,2597.6,8.16678068]
[1723879784073,0.3617,2597.7,2597.6,10.18623827]
[1723879784664,0.00872342,2597.8,2597.7,1.92432]
[1723879784866,0.00872342,2597.8,2597.7,4.54131068]
[1723879785568,0.00872342,2597.8,2597.7,10.40954865]
[1723879785766,0.00872342,2597.8,2597.7,14.25914865]
[1723879785968,0.00872342,2597.8,2597.7,10.40954865]
[1723879786371,0.00872342,2597.8,2597.7,10.40914612]
[1723879786670,0.00872342,2597.8,2597.7,4.19674284]
[1723879787467,0.00872342,2597.8,2597.7,5.7101875]
[1723879788273,0.00872342,2597.8,2597.7,5.71021054]
[1723879788471,0.00872342,2597.8,2597.7,4.19674284]
[1723879789379,0.00872342,2597.8,2597.7,6.21620043]
[1723879790170,0.00872342,2597.8,2597.7,9.42400043]
[1723879790968,0.00872342,2597.8,2597.7,13.27278098]